bitfinex/quotes_SOLUSD_20251031
["timestamp","ask_amount","ask_price","bid_price","bid_amount"]
[1761921939289,5.99039243,188.31,188.27,0.98432314]
[1761921939666,0.68,188.3,188.26,0.48432314]
[1761921939870,8.86083328,188.3,188.26,0.2]
[1761921940963,5.31039243,188.31,188.26,0.9]
[1761921941187,14.17122571,188.31,188.26,0.9]
[1761921941389,0.68,188.3,188.26,0.9]
[1761921941582,5.3109565,188.29,188.26,0.9]
[1761921941787,5.3109565,188.29,188.26,0.2]
[1761921942696,5.3109565,188.29,188.26,0.9]
[1761921942894,0.68,188.3,188.26,9.36515642]
[1761921943099,13.49098532,188.32,188.27,0.7]
[1761921943409,13.49098532,188.32,188.26,8.66515642]
[1761921943410,47.35826144,188.32,188.26,0.2]
[1761921943572,5.31067445,188.3,188.26,0.2]
[1761921943895,8.18083328,188.29,188.26,0.2]
[1761921944069,27.44819386,188.3,188.26,0.2]
[1761921944702,8.86083328,188.29,188.26,0.2]
[1761921944997,0.68,188.29,188.26,0.2]
[1761921945294,8.86083328,188.29,188.26,0.2]
[1761921945683,5.31123858,188.28,188.26,0.2]
[1761921946399,5.99123858,188.28,188.26,0.2]
[1761921947378,5.31123858,188.28,188.26,0.2]
[1761921947689,20.592,188.32,188.28,0.28432314]
[1761921948072,20.592,188.32,188.28,0.98432314]
[1761921948401,5.30983407,188.33,188.29,8.18083328]
[1761921948568,5.30960576,188.34,188.3,0.28432314]
[1761921948773,5.30960576,188.34,188.31,0.28432314]
[1761921948988,5.30960576,188.34,188.31,0.98432314]
[1761921949192,5.30933006,188.35,188.31,9.16515642]
[1761921949399,5.30892635,188.37,188.32,0.7]
[1761921949640,8.61381616,188.37,188.33,0.28432314]
[1761921949797,9.29381616,188.37,188.32,0.98432314]
[1761921949975,9.29381616,188.37,188.32,4.28921295]
[1761921950477,9.29381616,188.37,188.32,0.98432314]
[1761921951410,14.17352006,188.37,188.32,0.98432314]
[1761921952119,8.18459371,188.34,188.29,0.7]
[1761921952314,8.18459371,188.32,188.27,0.7]
[1761921952697,8.86459371,188.33,188.29,0.28432314]
[1761921953386,0.68,188.33,188.29,9.16891685]
[1761921953585,0.68,188.33,188.29,0.98432314]
[1761921953987,25.90164177,188.34,188.3,0.7]
[1761921954209,25.90164177,188.34,188.31,0.28432314]
[1761921954709,25.90164177,188.34,188.32,0.7]
[1761921955016,25.90164177,188.34,188.31,0.28432314]
[1761921955332,25.90164177,188.34,188.31,0.98432314]
[1761921955629,25.90164177,188.34,188.31,0.28432314]
[1761921955801,0.68,188.33,188.31,0.28432314]
[1761921956512,0.68,188.33,188.29,0.28432314]
[1761921956696,8.18459371,188.32,188.29,0.28432314]
[1761921957087,0.68,188.31,188.29,0.28432314]
[1761921957921,5.31058574,188.31,188.29,0.28432314]
[1761921958122,5.31014844,188.32,188.29,0.28432314]
[1761921958426,33.86586641,188.34,188.29,0.28432314]
[1761921958427,20.592,188.34,188.31,0.28432314]
[1761921958604,26.53802297,188.41,188.3,8.18459371]
[1761921958605,8.86459371,188.38,188.33,0.28432314]
[1761921958801,14.17307061,188.38,188.33,0.28432314]
[1761921959025,28.77659371,188.39,188.34,0.65]
[1761921959208,1.99999999,188.47,188.34,0.65]
[1761921959209,4.45482527,188.48,188.35,8.46891685]
[1761921959410,0.78,188.51,188.44,8.18459371]
[1761921959607,0.78,188.51,188.46,8.18459371]
[1761921959924,0.78,188.51,188.48,8.18459371]
[1761921959925,0.1,188.51,188.48,8.18459371]
[1761921960227,0.1,188.51,188.5,8.46891685]
[1761921960517,0.1,188.51,188.44,0.65]
[1761921960718,0.1,188.51,188.48,0.28432314]
[1761921960894,0.1,188.51,188.49,8.18459371]
[1761921961341,0.1,188.51,188.48,8.83459371]
[1761921961624,0.1,188.51,188.48,0.93432314]
[1761921961828,0.1,188.51,188.48,9.11891685]
[1761921961997,0.1,188.51,188.48,8.46891685]
[1761921962198,0.1,188.51,188.48,9.11891685]
[1761921963205,0.68,188.5,188.42,0.65]
[1761921963401,0.68,188.5,188.42,8.18459371]
[1761921963402,8.18459371,188.49,188.42,8.18459371]
[1761921963622,0.68,188.5,188.42,8.18459371]
[1761921963931,25.89784832,188.48,188.43,0.28432314]
[1761921964327,20.592,188.48,188.44,8.18459371]
[1761921964511,13.36189592,188.51,188.47,8.18459371]
[1761921964512,0.1,188.51,188.47,8.18459371]
[1761921964719,0.1,188.51,188.46,0.28432314]
[1761921964913,0.78,188.51,188.47,8.18459371]
[1761921965238,6.08479989,188.51,188.47,8.18459371]
[1761921965418,0.78,188.51,188.47,8.18459371]
[1761921965741,29.45659371,188.5,188.41,0.65]
[1761921965898,5.30532123,188.49,188.43,8.83459371]
[1761921966099,5.98532123,188.49,188.43,8.83459371]
[1761921966934,20.592,188.5,188.45,8.18459371]
[1761921967129,20.592,188.5,188.47,8.18459371]
[1761921967334,0.1,188.51,188.47,8.18459371]
[1761921967529,21.372,188.51,188.47,8.18459371]
[1761921967832,26.67677542,188.51,188.47,8.18459371]
[1761921968334,21.372,188.51,188.47,8.18459371]
[1761921968640,0.1,188.51,188.49,8.18459371]
[1761921968841,0.1,188.51,188.5,8.46891685]
[1761921969011,0.1,188.51,188.5,0.28432314]
[1761921969210,0.1,188.51,188.5,9.11891685]
[1761921969654,0.1,188.51,188.5,0.28432314]
[1761921969824,0.1,188.51,188.5,9.11891685]
[1761921971914,0.1,188.51,188.5,24.21278432]
[1761921972139,0.1,188.51,188.5,32.39737803]
[1761921972337,0.1,188.56,188.54,9.78882769]
[1761921972542,0.1,188.56,188.53,20.592]
[1761921972543,0.1,188.6,188.56,9.78882769]
[1761921972765,0.1,188.6,188.59,8.46891685]
[1761921972914,0.1,188.6,188.5,13.48963349]
[1761921973230,8.18459371,188.58,188.51,0.65]
[1761921973537,8.18459371,188.58,188.42,1.99999999]
[1761921973538,0.68,188.57,188.5,8.18459371]
[1761921973747,0.68,188.57,188.51,8.18459371]
[1761921974030,0.68,188.57,188.48,20.592]
[1761921974031,5.30363298,188.55,188.5,8.18459371]
[1761921974439,5.30363298,188.55,188.51,8.18459371]
[1761921974622,21.44210355,188.58,188.52,0.28432314]
[1761921974623,5.98333614,188.57,188.52,0.28432314]
[1761921975140,0.68,188.56,188.52,0.28432314]
[1761921975837,5.37521076,188.53,188.43,0.65]
[1761921976017,18.56665428,188.51,188.45,5.37521076]
[1761921976434,18.56665428,188.51,188.46,0.28432314]
[1761921976623,18.56665428,188.51,188.45,5.37521076]
[1761921976822,19.24665428,188.51,188.46,0.28432314]
[1761921977020,0.68,188.5,188.41,0.65]
[1761921977233,6.05521076,188.5,188.44,0.28432314]
[1761921977426,5.37521076,188.48,188.41,5.37521076]
[1761921977621,6.05521076,188.47,188.39,5.37521076]
[1761921978035,18.57256566,188.45,188.39,5.37521076]
[1761921978421,0.68,188.44,188.37,5.37521076]
[1761921978735,5.37521076,188.42,188.35,5.37521076]
[1761921979047,5.37521076,188.39,188.32,6.02521076]
[1761921979233,5.37521076,188.4,188.33,0.28432314]
[1761921979628,0.68,188.39,188.33,0.28432314]
[1761921979838,6.05521076,188.39,188.33,0.28432314]
[1761921980043,5.30841915,188.38,188.33,5.6595339]
[1761921980221,5.30841915,188.38,188.34,5.37521076]
[1761921980617,20.592,188.42,188.34,5.37521076]
[1761921980618,5.37521076,188.47,188.38,0.28432314]
[1761921980820,11.36137652,188.46,188.4,0.28432314]
[1761921981034,5.37521076,188.45,188.4,0.28432314]
[1761921981234,6.05521076,188.45,188.4,0.28432314]
[1761921981434,0.68,188.44,188.4,0.28432314]
[1761921981630,0.68,188.44,188.39,5.37521076]
[1761921981855,5.37521076,188.42,188.35,5.37521076]
[1761921982151,5.3075739,188.41,188.36,5.6595339]
[1761921982528,0.68,188.4,188.34,5.37521076]
[1761921982948,6.05521076,188.4,188.33,5.37521076]
[1761921983154,6.05521076,188.4,188.34,0.28432314]
[1761921983365,0.68,188.39,188.33,5.37521076]
[1761921983655,0.68,188.39,188.34,0.28432314]
[1761921983861,0.68,188.39,188.34,5.6595339]
[1761921984166,5.3082162,188.39,188.36,0.28432314]
[1761921984544,5.30762579,188.41,188.36,0.28432314]
[1761921984861,21.272,188.4,188.36,0.28432314]
[1761921985831,0.68,188.39,188.36,0.28432314]
[1761921986053,5.98831172,188.39,188.35,0.28432314]
[1761921986654,6.05521076,188.38,188.3,21.242]
[1761921986831,0.68,188.38,188.3,0.65]
[1761921987034,0.68,188.38,188.31,5.37521076]
[1761921987234,5.30831172,188.39,188.3,0.65]
[1761921987235,6.05521076,188.37,188.3,5.37521076]
[1761921987756,0.68,188.36,188.31,0.28432314]
[1761921987960,0.68,188.36,188.3,6.02521076]
[1761921988161,0.68,188.36,188.31,5.37521076]
[1761921988457,5.37521076,188.38,188.33,0.28432314]
[1761921988458,5.30870096,188.37,188.33,0.28432314]
[1761921988659,5.37521076,188.36,188.29,5.37521076]
[1761921988960,5.37521076,188.35,188.3,0.28432314]
[1761921989163,5.37521076,188.34,188.3,0.28432314]
[1761921989363,5.37521076,188.33,188.26,0.2]
[1761921989670,5.37521076,188.31,188.26,0.2]
[1761921990150,0.71,188.3,188.26,0.2]
[1761921990548,10.68535891,188.32,188.26,6.23521076]
[1761921990764,26.61209156,188.33,188.28,0.28432314]
[1761921991066,20.592,188.33,188.3,0.28432314]
[1761921991265,5.30930684,188.35,188.31,0.28432314]
[1761921991469,0.71,188.38,188.33,5.37521076]
[1761921991837,0.71,188.38,188.32,5.37521076]
[1761921992142,6.08521076,188.38,188.31,5.6595339]
[1761921992363,5.30870096,188.37,188.31,5.6595339]
[1761921992564,6.01870096,188.37,188.31,5.6595339]
[1761921992869,5.30844142,188.38,188.32,0.66]
[1761921993247,5.30844142,188.38,188.26,43.86033475]
[1761921993248,6.01844142,188.38,188.33,5.37521076]
[1761921993454,0.71,188.37,188.29,0.28432314]
[1761921993652,6.08521076,188.37,188.31,0.28432314]
[1761921994057,0.71,188.37,188.31,5.6595339]
[1761921994374,5.30844142,188.38,188.33,5.37521076]
[1761921994572,0.71,188.37,188.33,5.37521076]
[1761921995151,0.71,188.37,188.33,0.28432314]
[1761921995862,5.30844142,188.38,188.34,5.37521076]
[1761921996254,6.01844142,188.38,188.34,5.37521076]
[1761921996872,0.71,188.37,188.33,5.6595339]
[1761921997248,0.71,188.37,188.33,0.28432314]
[1761921998056,0.71,188.37,188.33,5.6595339]
[1761921999076,0.71,188.41,188.36,5.37521076]
[1761921999256,0.71,188.41,188.37,5.37521076]
[1761921999457,20.592,188.4,188.36,5.37521076]
[1761921999961,0.71,188.39,188.3,0.66]
[1761922000166,0.71,188.39,188.32,5.37521076]
[1761922000167,6.08521076,188.39,188.32,5.37521076]
[1761922000358,5.37521076,188.37,188.3,5.37521076]
[1761922000554,5.37521076,188.36,188.3,5.37521076]
[1761922000750,6.08521076,188.36,188.3,5.37521076]
[1761922000954,0.71,188.35,188.3,5.37521076]
[1761922001154,5.30954656,188.34,188.3,5.37521076]
[1761922001352,18.58341297,188.34,188.28,5.37521076]
[1761922001555,5.30954656,188.34,188.29,5.37521076]
[1761922001975,5.30931332,188.35,188.3,5.37521076]
[1761922002160,0.71,188.35,188.31,5.6595339]
[1761922002359,6.01841915,188.38,188.32,5.37521076]
[1761922002565,6.01841915,188.38,188.33,5.37521076]
[1761922003078,0.71,188.37,188.33,5.37521076]
[1761922003275,6.01868138,188.38,188.33,0.28432314]
[1761922003447,5.30868138,188.38,188.33,5.37521076]
[1761922003647,5.30868138,188.38,188.34,5.37521076]
[1761922003966,6.01868138,188.38,188.34,5.37521076]
[1761922004173,5.30868138,188.38,188.34,5.37521076]
[1761922004362,0.71,188.37,188.33,0.28432314]
[1761922004548,0.71,188.37,188.27,9.78882769]
[1761922004753,5.37521076,188.35,188.29,5.37521076]
[1761922005152,0.71,188.34,188.29,5.37521076]
[1761922005368,5.30982849,188.33,188.29,5.37521076]
[1761922005654,18.58439972,188.33,188.29,0.28432314]
[1761922005849,0.71,188.32,188.28,0.28432314]
[1761922006050,0.71,188.34,188.29,5.37521076]
[1761922006353,25.90138423,188.35,188.3,5.37521076]
[1761922006578,26.61138423,188.35,188.3,5.37521076]
[1761922006777,0.71,188.34,188.3,5.37521076]
[1761922007155,0.71,188.34,188.29,5.37521076]
[1761922007351,5.30982849,188.33,188.28,5.6595339]
[1761922007768,5.30982849,188.33,188.28,0.28432314]
[1761922007769,0.71,188.32,188.28,0.28432314]
[1761922008455,0.71,188.32,188.28,5.37521076]
[1761922008787,5.30982849,188.33,188.29,5.37521076]
[1761922009282,18.58361239,188.34,188.29,5.37521076]
[1761922009476,0.71,188.33,188.29,5.37521076]
[1761922009696,13.98118243,188.38,188.32,5.37521076]
[1761922009865,13.26994234,188.4,188.34,5.37521076]
[1761922010060,5.30817679,188.39,188.35,0.28432314]
[1761922010277,20.592,188.37,188.36,5.37521076]
[1761922010482,20.592,188.37,188.35,5.6595339]
[1761922010780,5.30788919,188.4,188.36,5.37521076]
[1761922011086,0.71,188.39,188.35,5.6595339]
[1761922011460,5.30841915,188.38,188.35,5.6595339]
[1761922012356,0.71,188.37,188.35,0.28432314]
[1761922012558,0.71,188.37,188.29,20.592]
[1761922012754,6.08521076,188.37,188.32,0.28432314]
[1761922012982,26.61010209,188.4,188.34,0.28432314]
[1761922013166,26.61010209,188.4,188.34,5.37521076]
[1761922013167,31.27531285,188.4,188.34,5.37521076]
[1761922013361,5.30841915,188.38,188.34,5.37521076]
[1761922013976,6.01841915,188.38,188.34,5.37521076]
[1761922014284,6.01841915,188.38,188.34,0.28432314]
[1761922015389,5.30898279,188.36,188.33,5.37521076]
[1761922015571,5.30898279,188.36,188.29,0.66]
[1761922015891,6.01872723,188.37,188.32,5.37521076]
[1761922016688,0.71,188.36,188.32,5.37521076]
[1761922017589,5.30870096,188.37,188.33,0.28432314]
[1761922017786,5.30870096,188.37,188.33,5.37521076]
[1761922017997,6.01870096,188.37,188.33,5.37521076]
[1761922018888,0.66,188.36,188.32,5.37521076]
[1761922019072,0.66,188.36,188.31,5.6595339]
[1761922019470,5.30926466,188.35,188.31,5.6595339]
[1761922019674,5.30926466,188.35,188.31,6.3295339]
[1761922020387,5.37521076,188.32,188.26,0.87]
[1761922020588,5.37521076,188.28,188.26,0.2]
[1761922020886,5.37521076,188.29,188.26,0.2]
[1761922021092,5.37521076,188.27,188.26,0.2]
[1761922021472,6.03521076,188.27,188.26,0.2]
[1761922021674,31.93873144,188.27,188.26,0.2]
[1761922023579,11.34673144,188.27,188.24,0.2]
[1761922023780,5.37521076,188.25,188.23,0.2]
[1761922023981,28.37915009,188.27,188.23,0.2]
[1761922023982,20.592,188.24,188.23,0.2]
[1761922024185,0.66,188.26,188.23,0.2]
[1761922024379,5.37521076,188.25,188.23,0.2]
[1761922024582,0.66,188.26,188.23,0.2]
[1761922024583,25.96721076,188.24,188.23,0.2]
[1761922024790,15.16403845,188.24,188.22,0.2]
[1761922025100,26.62721076,188.23,188.22,0.2]
[1761922025707,26.62721076,188.23,188.21,0.2]
[1761922025708,11.34786017,188.23,188.21,0.2]
[1761922025880,36.41603845,188.22,188.21,0.2]
[1761922026577,36.41603845,188.22,188.21,1e-08]
[1761922027097,20.592,188.22,188.21,1e-08]
[1761922027279,26.56410092,188.25,188.21,1e-08]
[1761922027600,18.59032659,188.27,188.22,5.37521076]
[1761922027786,0.66,188.26,188.21,0.14216158]
[1761922029082,0.66,188.31,188.24,5.37521076]
[1761922029409,0.66,188.31,188.21,5.51737234]
[1761922029410,5.37521076,188.28,188.21,5.51737234]
[1761922029612,20.592,188.28,188.21,0.81216158]
[1761922029903,20.592,188.25,188.21,1e-08]
[1761922030095,5.37521076,188.26,188.21,1e-08]
[1761922030302,6.03521076,188.25,188.21,1e-08]
[1761922030485,5.37521076,188.24,188.21,1e-08]
[1761922030680,6.03521076,188.24,188.21,1e-08]
[1761922031099,21.252,188.24,188.21,1e-08]
[1761922031616,20.592,188.24,188.21,1e-08]
[1761922031820,6.03521076,188.28,188.21,0.95432315]
[1761922032108,5.31129157,188.28,188.23,5.6595339]
[1761922032303,5.31129157,188.28,188.24,5.37521076]
[1761922032480,6.03521076,188.31,188.25,5.37521076]
[1761922032481,0.66,188.31,188.25,5.37521076]
[1761922032983,0.66,188.31,188.24,0.67]
[1761922032984,5.31067445,188.3,188.27,0.28432314]
[1761922033685,19.24736058,188.3,188.26,0.28432314]
[1761922034089,0.66,188.29,188.23,5.37521076]
[1761922034306,5.37521076,188.28,188.22,0.28432314]
[1761922034618,5.37521076,188.23,188.21,1e-08]
[1761922034899,5.37521076,188.22,188.21,1e-08]
[1761922035204,6.03521076,188.22,188.21,1e-08]
[1761922036104,11.34814243,188.22,188.21,1e-08]
[1761922036982,21.13697012,188.22,188.21,1e-08]
[1761922037397,23.96398128,188.22,188.21,1e-08]
[1761922037589,14.17515359,188.22,188.21,1e-08]
[1761922037796,23.96398128,188.22,188.21,1e-08]
[1761922038001,35.69432397,188.2,188.19,1e-08]
[1761922038315,23.30454589,188.2,188.19,1e-08]
[1761922038483,24.01454589,188.2,188.19,1e-08]
[1761922040784,36.40432397,188.2,188.19,1e-08]
[1761922040988,44.60654589,188.2,188.19,1e-08]
[1761922041181,24.01454589,188.2,188.19,1e-08]
[1761922041700,5.31349628,188.2,188.19,1e-08]
[1761922042300,18.59526085,188.22,188.19,1e-08]
[1761922042882,8.20222192,188.28,188.21,8.20222192]
[1761922043121,0.71,188.29,188.19,0.67000001]
[1761922043122,21.48184602,188.26,188.19,8.87222193]
[1761922043300,8.20222192,188.24,188.19,1e-08]
[1761922043688,34.5816241,188.26,188.19,1e-08]
[1761922043894,8.20222192,188.24,188.19,0.67000001]
[1761922044098,5.31236719,188.24,188.19,0.67000001]
[1761922044603,18.59328516,188.24,188.19,0.67000001]
[1761922044807,27.50550708,188.24,188.19,1e-08]
[1761922045488,19.30328516,188.24,188.19,1e-08]
[1761922045682,19.30328516,188.24,188.19,0.67000001]
[1761922046109,19.30328516,188.24,188.19,1e-08]
[1761922046309,27.50550708,188.24,188.19,1e-08]
[1761922046497,19.30328516,188.24,188.19,1e-08]
[1761922046897,19.30328516,188.24,188.19,8.20222193]
[1761922048816,28.79422192,188.26,188.19,8.20222193]
[1761922049005,8.20222192,188.25,188.19,8.20222193]
[1761922049188,8.92222192,188.25,188.19,8.20222193]
[1761922049388,0.72,188.25,188.19,8.20222193]
[1761922050119,8.20222192,188.24,188.19,1e-08]
[1761922050415,26.79748277,188.22,188.19,1e-08]
[1761922050617,5.31293167,188.22,188.19,1e-08]
[1761922050800,20.592,188.2,188.19,1e-08]
[1761922051005,28.79422192,188.2,188.19,1e-08]
[1761922051323,29.51422192,188.2,188.19,1e-08]
[1761922051698,28.79422192,188.2,188.19,1e-08]
[1761922051895,29.51422192,188.2,188.19,1e-08]
[1761922052395,34.8277182,188.2,188.19,1e-08]
[1761922053316,25.90549628,188.2,188.19,1e-08]
[1761922053692,5.31349628,188.2,188.19,1e-08]
[1761922054421,18.59526085,188.22,188.19,1e-08]
[1761922054603,19.31526085,188.22,188.19,1e-08]
[1761922055316,18.59526085,188.22,188.19,1e-08]
[1761922055694,19.31526085,188.22,188.19,1e-08]
[1761922056522,18.59526085,188.22,188.19,1e-08]
[1761922057320,5.31293167,188.22,188.2,0.66]
[1761922057523,5.31293167,188.22,188.2,8.86222192]
[1761922057727,5.31293167,188.22,188.2,0.66]
[1761922057918,5.31293167,188.22,188.19,8.20222193]
[1761922058108,5.31293167,188.22,188.19,8.86222193]
[1761922058502,5.31293167,188.22,188.19,0.66000001]
[1761922058711,5.31293167,188.22,188.19,1e-08]
[1761922058919,8.92222192,188.21,188.19,1e-08]
[1761922059124,8.20222192,188.2,188.19,1e-08]
[1761922059311,29.51422192,188.2,188.19,1e-08]
[1761922059822,20.592,188.2,188.19,1e-08]
[1761922060397,26.79653958,188.23,188.19,0.66000001]
[1761922060595,13.51491604,188.23,188.19,0.66000001]
[1761922060803,5.31269412,188.23,188.19,0.66000001]
[1761922061309,8.92222192,188.22,188.19,1e-08]
[1761922061501,8.20222192,188.22,188.19,1e-08]
[1761922061916,6.03269412,188.23,188.19,1e-08]
[1761922062122,18.59431766,188.23,188.19,1e-08]
[1761922062296,18.59431766,188.23,188.19,0.66000001]
[1761922062497,5.31269412,188.23,188.2,0.28432314]
[1761922062697,5.31269412,188.23,188.2,0.94432314]
[1761922062925,20.592,188.24,188.2,0.94432314]
[1761922063097,5.31067445,188.3,188.21,0.66]
[1761922063298,5.31067445,188.3,188.25,8.20222192]
[1761922063522,39.17936058,188.3,188.25,8.20222192]
[1761922063719,39.17936058,188.3,188.25,0.66]
[1761922063720,48.1015825,188.3,188.25,0.66]
[1761922063922,39.89936058,188.3,188.25,8.86222192]
[1761922064141,39.89936058,188.3,188.24,8.20222192]
[1761922064421,39.89936058,188.3,188.19,1e-08]
[1761922064422,8.20222192,188.28,188.21,8.86222192]
[1761922064804,8.92222192,188.28,188.21,8.86222192]
[1761922065008,5.31152068,188.27,188.21,8.86222192]
[1761922065721,28.79422192,188.24,188.19,1e-08]
[1761922066228,8.92222192,188.23,188.19,1e-08]
[1761922066419,8.20222192,188.22,188.19,1e-08]
[1761922067011,5.31321396,188.21,188.19,1e-08]
[1761922068312,20.592,188.24,188.2,0.66]
[1761922068520,34.10677149,188.24,188.2,0.66]
[1761922068713,39.18546754,188.24,188.19,8.20222193]
[1761922068916,8.20222192,188.2,188.19,1e-08]
[1761922069111,5.31349628,188.2,188.19,1e-08]
[1761922069312,14.2357182,188.2,188.19,1e-08]
[1761922069708,13.5157182,188.2,188.19,1e-08]
[1761922070639,14.2357182,188.2,188.19,1e-08]
[1761922071136,24.02454589,188.2,188.19,1e-08]
[1761922073414,14.2357182,188.2,188.19,1e-08]
[1761922075428,25.90549628,188.2,188.19,1e-08]
[1761922075623,34.8277182,188.2,188.19,1e-08]
[1761922076016,34.1077182,188.2,188.19,1e-08]
[1761922076216,5.31349628,188.2,188.19,1e-08]
[1761922076629,25.90549628,188.2,188.19,1e-08]
[1761922077327,34.8277182,188.2,188.19,1e-08]
[1761922077850,34.1077182,188.2,188.19,1e-08]
[1761922078150,25.90549628,188.2,188.19,1e-08]
[1761922079220,34.7677182,188.2,188.19,1e-08]
[1761922079957,25.90549628,188.2,188.19,1e-08]
[1761922080458,34.7677182,188.2,188.19,1e-08]
[1761922080828,25.90549628,188.2,188.19,1e-08]
[1761922081135,34.1077182,188.2,188.19,1e-08]
[1761922081716,20.592,188.2,188.19,1e-08]
[1761922081920,25.90549628,188.2,188.19,1e-08]
[1761922082450,25.90549628,188.2,188.19,0.69000001]
[1761922083146,20.592,188.2,188.19,0.69000001]
[1761922083326,25.90549628,188.2,188.19,1e-08]
[1761922083943,5.31325943,188.21,188.19,0.69000001]
[1761922084128,5.31325943,188.21,188.19,1e-08]
[1761922085563,14.17548135,188.21,188.19,1e-08]
[1761922085858,8.86222192,188.2,188.19,1e-08]
[1761922086222,0.66,188.2,188.19,1e-08]
[1761922086455,8.86222192,188.2,188.19,1e-08]
[1761922086654,8.20222192,188.2,188.19,1e-08]
[1761922087151,8.86222192,188.2,188.19,1e-08]
[1761922087355,14.1757182,188.2,188.19,1e-08]
[1761922087556,5.31349628,188.2,188.19,1e-08]
[1761922088249,5.31349628,188.2,188.19,0.69000001]
[1761922088459,20.592,188.22,188.19,8.89222193]
[1761922088460,25.90495229,188.22,188.19,8.89222193]
[1761922088628,25.90495229,188.22,188.2,0.69]
[1761922088829,39.18728147,188.22,188.19,8.89222193]
[1761922089039,39.18728147,188.22,188.19,0.69000001]
[1761922089740,25.90495229,188.22,188.19,8.89222193]
[1761922090134,5.31265501,188.23,188.21,8.20222192]
[1761922090347,5.31265501,188.23,188.21,8.89222192]
[1761922090722,5.31265501,188.23,188.22,0.69]
[1761922091461,26.79650047,188.23,188.19,1e-08]
[1761922091756,23.30454589,188.2,188.19,1e-08]
[1761922092049,20.592,188.17,188.15,1e-08]
[1761922092232,8.20222192,188.16,188.15,1e-08]
[1761922092435,20.592,188.16,188.15,1e-08]
[1761922092638,0.66,188.19,188.15,8.89222193]
[1761922092639,20.592,188.19,188.15,8.89222193]
[1761922093035,20.592,188.19,188.16,8.89222192]
[1761922093236,5.313081,188.22,188.18,8.20222192]
[1761922093450,5.313081,188.22,188.19,8.20222192]
[1761922093965,18.59430444,188.23,188.19,0.69]
[1761922094162,26.79652636,188.23,188.17,0.69]
[1761922094331,18.59430444,188.23,188.18,0.28432314]
[1761922094850,18.59430444,188.23,188.18,0.97432314]
[1761922095051,18.59430444,188.23,188.18,0.28432314]
[1761922095372,18.59430444,188.23,188.19,0.69]
[1761922095870,5.31264941,188.23,188.19,8.89222192]
[1761922096053,20.592,188.24,188.22,8.20222192]
[1761922096242,18.58885729,188.29,188.23,8.20222192]
[1761922096556,20.592,188.26,188.22,8.20222192]
[1761922096935,27.45107921,188.29,188.22,8.89222192]
[1761922097131,20.592,188.26,188.22,8.89222192]
[1761922097565,20.592,188.26,188.23,0.69]
[1761922097948,27.45107921,188.29,188.24,8.48654506]
[1761922097949,5.3109565,188.29,188.24,8.48654506]
[1761922098149,5.3109565,188.29,188.25,8.20222192]
[1761922098441,5.3109565,188.29,188.25,8.91222192]
[1761922098442,25.9029565,188.29,188.25,8.91222192]
[1761922098654,5.3109565,188.29,188.28,8.20222192]
[1761922098840,5.3109565,188.29,188.27,8.20222192]
[1761922099242,5.3109565,188.29,188.27,8.91222192]
[1761922099455,5.3109565,188.29,188.27,6.09877777]
[1761922099651,5.3109565,188.29,188.27,5.38877777]
[1761922099858,18.58538657,188.32,188.27,5.38877777]
[1761922100047,5.31011045,188.32,188.3,5.38877777]
[1761922100555,5.31011045,188.32,188.29,5.38877777]
[1761922100949,5.31011045,188.32,188.29,6.09877777]
[1761922101149,18.58538657,188.32,188.3,0.71]
[1761922101351,18.58538657,188.32,188.25,0.71]
[1761922101352,23.97416434,188.32,188.25,0.71]
[1761922101546,18.58538657,188.32,188.27,5.38877777]
[1761922101752,13.27527612,188.32,188.27,5.38877777]
[1761922102169,13.27527612,188.32,188.28,0.71]
[1761922102746,13.27527612,188.32,188.23,0.28432314]
[1761922102747,19.32405389,188.32,188.26,6.09877777]
[1761922103356,19.32405389,188.32,188.26,0.71]
[1761922103667,24.63416434,188.32,188.26,6.09877777]
[1761922103871,5.38877777,188.3,188.25,0.28432314]
[1761922104056,5.38877777,188.29,188.23,6.09877777]
[1761922104563,5.38877777,188.3,188.24,5.38877777]
[1761922105064,5.38877777,188.29,188.23,0.71]
[1761922105270,20.592,188.31,188.24,0.28432314]
[1761922105271,5.38877777,188.28,188.24,0.28432314]
[1761922105659,18.5903224,188.27,188.23,0.71]
[1761922106053,6.04877777,188.26,188.2,5.38877777]